[Event "Titled Tuesday Blitz May 10 Late 2022"]
[White "Wagner, Dinara"]
[Black "Kamsky, Gata"]
[WhiteFideId "24157570"]
[BlackFideId "2000024"]
[WhiteElo "2216"]
[BlackElo "2645"]
[Result "0-1"]
[Round "02"]
[TimeControl "180+1"]
[Date "2022.05.10"]
[WhiteClock "0:00:06"]
[BlackClock "0:00:55"]

1. d4 {[%clk 0:02:59]}  Nf6 {[%clk 0:02:54]} 2. c4 {[%clk 0:03:00]}  g6 {[%clk 0:02:54]} 3. Nf3 {[%clk 0:03:00]}  Bg7 {[%clk 0:02:54]} 4. Nc3 {[%clk 0:03:00]}  O-O {[%clk 0:02:54]} 5. g3 {[%clk 0:02:58]}  c6 {[%clk 0:02:52]} 6. e4 {[%clk 0:02:55]}  d6 {[%clk 0:02:50]} 7. Bg2 {[%clk 0:02:55]}  Bg4 {[%clk 0:02:50]} 8. h3 {[%clk 0:02:53]}  Bxf3 {[%clk 0:02:50]} 9. Bxf3 {[%clk 0:02:54]}  Qb6 {[%clk 0:02:44]} 10. O-O {[%clk 0:02:44]}  Nfd7 {[%clk 0:02:44]} 11. d5 {[%clk 0:02:39]}  a5 {[%clk 0:02:37]} 12. Qc2 {[%clk 0:02:36]}  Na6 {[%clk 0:02:24]} 13. Be3 {[%clk 0:02:34]}  Nac5 {[%clk 0:02:23]} 14. Bg2 {[%clk 0:02:34]}  Qb4 {[%clk 0:02:21]} 15. Rfd1 {[%clk 0:01:15]}  Qxc4 {[%clk 0:02:08]} 16. Bf1 {[%clk 0:01:12]}  Qb4 {[%clk 0:02:08]} 17. a3 {[%clk 0:01:06]}  Qb3 {[%clk 0:02:07]} 18. Qxb3 {[%clk 0:00:42]}  Nxb3 {[%clk 0:02:06]} 19. Rab1 {[%clk 0:00:42]}  Nbc5 {[%clk 0:02:03]} 20. b4 {[%clk 0:00:40]}  axb4 {[%clk 0:02:02]} 21. axb4 {[%clk 0:00:40]}  Bxc3 {[%clk 0:01:52]} 22. bxc5 {[%clk 0:00:40]}  Nxc5 {[%clk 0:01:53]} 23. Bxc5 {[%clk 0:00:28]}  dxc5 {[%clk 0:01:52]} 24. Rxb7 {[%clk 0:00:29]}  cxd5 {[%clk 0:01:52]} 25. exd5 {[%clk 0:00:18]}  Bf6 {[%clk 0:01:44]} 26. Bc4 {[%clk 0:00:18]}  Rfb8 {[%clk 0:01:42]} 27. Rd7 {[%clk 0:00:17]}  Rb4 {[%clk 0:01:36]} 28. Rc1 {[%clk 0:00:16]}  Raa4 {[%clk 0:01:33]} 29. Bf1 {[%clk 0:00:12]}  c4 {[%clk 0:01:33]} 30. d6 {[%clk 0:00:11]}  exd6 {[%clk 0:01:32]} 31. Rxd6 {[%clk 0:00:12]}  Kg7 {[%clk 0:01:32]} 32. Bg2 {[%clk 0:00:11]}  Ra7 {[%clk 0:01:26]} 33. Bd5 {[%clk 0:00:11]}  c3 {[%clk 0:01:25]} 34. Rxf6 {[%clk 0:00:11]}  Kxf6 {[%clk 0:01:25]} 35. Rxc3 {[%clk 0:00:12]}  Ke5 {[%clk 0:01:22]} 36. Bf3 {[%clk 0:00:10]}  f5 {[%clk 0:01:22]} 37. Re3+ {[%clk 0:00:10]}  Kf6 {[%clk 0:01:22]} 38. Bd5 {[%clk 0:00:10]}  Re7 {[%clk 0:01:20]} 39. Rc3 {[%clk 0:00:09]}  Rd7 {[%clk 0:01:16]} 40. Bf3 {[%clk 0:00:09]}  Rb6 {[%clk 0:01:12]} 41. h4 {[%clk 0:00:09]}  Rd2 {[%clk 0:01:09]} 42. Ba8 {[%clk 0:00:06]}  Rb1+ {[%clk 0:01:08]} 43. Kg2 {[%clk 0:00:06]}  Rbb2 {[%clk 0:01:08]} 44. Rf3 {[%clk 0:00:07]}  h6 {[%clk 0:01:06]} 45. Bc6 {[%clk 0:00:07]}  Ke5 {[%clk 0:01:04]} 46. Ba8 {[%clk 0:00:06]}  g5 {[%clk 0:01:04]} 47. hxg5 {[%clk 0:00:06]}  hxg5 {[%clk 0:01:04]} 48. Bc6 {[%clk 0:00:07]}  g4 {[%clk 0:00:57]} 49. Rf4 {[%clk 0:00:06]}  Rd1 {[%clk 0:00:56]} 50. Be8 {[%clk 0:00:06]}  Rbb1 {[%clk 0:00:55]} 51. f3 {[%clk 0:00:06]}  Rd2# {[%clk 0:00:55]} 0-1


[Site "https://www.chess.com"]

[Event "Titled Tuesday Blitz May 10 Late 2022"]
[White "Fishbein, Alexander"]
[Black "Jobava, Baadur"]
[WhiteFideId "2000377"]
[BlackFideId "13601520"]
[WhiteElo "2442"]
[BlackElo "2617"]
[Result "0-1"]
[Round "02"]
[TimeControl "180+1"]
[Date "2022.05.10"]
[WhiteClock "0:00:11"]
[BlackClock "0:01:26"]

1. e4 {[%clk 0:03:00]}  e6 {[%clk 0:02:56]} 2. d4 {[%clk 0:03:00]}  d5 {[%clk 0:02:57]} 3. exd5 {[%clk 0:03:00]}  exd5 {[%clk 0:02:57]} 4. Nf3 {[%clk 0:03:00]}  Nf6 {[%clk 0:02:57]} 5. Bd3 {[%clk 0:03:00]}  Bd6 {[%clk 0:02:58]} 6. Qe2+ {[%clk 0:03:00]}  Qe7 {[%clk 0:02:56]} 7. Qxe7+ {[%clk 0:02:59]}  Kxe7 {[%clk 0:02:56]} 8. O-O {[%clk 0:02:58]}  Rd8 {[%clk 0:02:55]} 9. Bg5 {[%clk 0:02:55]}  h6 {[%clk 0:02:52]} 10. Bh4 {[%clk 0:02:55]}  Be6 {[%clk 0:02:49]} 11. Re1 {[%clk 0:02:48]}  Nd7 {[%clk 0:02:49]} 12. c4 {[%clk 0:02:42]}  g5 {[%clk 0:02:39]} 13. Bg3 {[%clk 0:02:40]}  Bxg3 {[%clk 0:02:36]} 14. hxg3 {[%clk 0:02:36]}  dxc4 {[%clk 0:02:37]} 15. Bxc4 {[%clk 0:02:36]}  Nf8 {[%clk 0:02:37]} 16. Nc3 {[%clk 0:02:31]}  c6 {[%clk 0:02:35]} 17. Rad1 {[%clk 0:02:27]}  Rd6 {[%clk 0:02:25]} 18. d5 {[%clk 0:02:12]}  cxd5 {[%clk 0:02:26]} 19. Bxd5 {[%clk 0:02:07]}  Rad8 {[%clk 0:02:18]} 20. Bxb7 {[%clk 0:01:59]}  Rxd1 {[%clk 0:02:18]} 21. Nxd1 {[%clk 0:01:59]}  Ng6 {[%clk 0:02:11]} 22. Ba6 {[%clk 0:01:55]}  g4 {[%clk 0:02:11]} 23. Nh4 {[%clk 0:01:52]}  Nxh4 {[%clk 0:02:11]} 24. gxh4 {[%clk 0:01:52]}  Rd2 {[%clk 0:02:12]} 25. a3 {[%clk 0:01:43]}  Kd6 {[%clk 0:02:12]} 26. b4 {[%clk 0:01:36]}  Nd5 {[%clk 0:02:12]} 27. Bc4 {[%clk 0:01:33]}  Nxb4 {[%clk 0:01:58]} 28. Ne3 {[%clk 0:01:18]}  Nc2 {[%clk 0:01:52]} 29. Bxe6 {[%clk 0:01:11]}  Nxe1 {[%clk 0:01:53]} 30. Nc4+ {[%clk 0:01:08]}  Kxe6 {[%clk 0:01:53]} 31. Nxd2 {[%clk 0:01:08]}  Kd5 {[%clk 0:01:53]} 32. Kf1 {[%clk 0:01:05]}  Nc2 {[%clk 0:01:53]} 33. a4 {[%clk 0:01:05]}  Nd4 {[%clk 0:01:53]} 34. Ke1 {[%clk 0:00:57]}  a5 {[%clk 0:01:53]} 35. f3 {[%clk 0:00:51]}  gxf3 {[%clk 0:01:53]} 36. gxf3 {[%clk 0:00:50]}  Kc5 {[%clk 0:01:51]} 37. Kf2 {[%clk 0:00:48]}  Kb4 {[%clk 0:01:51]} 38. Ke3 {[%clk 0:00:49]}  Nf5+ {[%clk 0:01:51]} 39. Kf4 {[%clk 0:00:42]}  Nxh4 {[%clk 0:01:52]} 40. Ne4 {[%clk 0:00:41]}  Kxa4 {[%clk 0:01:52]} 41. Nd6 {[%clk 0:00:41]}  f6 {[%clk 0:01:36]} 42. Kg4 {[%clk 0:00:31]}  Ng2 {[%clk 0:01:36]} 43. Ne4 {[%clk 0:00:27]}  Ne3+ {[%clk 0:01:29]} 44. Kh5 {[%clk 0:00:25]}  f5 {[%clk 0:01:29]} 45. Nc5+ {[%clk 0:00:18]}  Kb4 {[%clk 0:01:29]} 46. Nd3+ {[%clk 0:00:18]}  Kc4 {[%clk 0:01:28]} 47. Nb2+ {[%clk 0:00:18]}  Kc3 {[%clk 0:01:26]} 48. Na4+ {[%clk 0:00:18]}  Kb4 {[%clk 0:01:26]} 49. Nb6 {[%clk 0:00:14]}  Kb5 {[%clk 0:01:26]} 50. Nc8 {[%clk 0:00:13]}  a4 {[%clk 0:01:26]} 51. Nd6+ {[%clk 0:00:13]}  Kb4 {[%clk 0:01:26]} 52. Nf7 {[%clk 0:00:11]}  a3 {[%clk 0:01:26]} 53. Ne5 {[%clk 0:00:11]}  Kc3 {[%clk 0:01:26]} 0-1


[Site "https://www.chess.com"]

[Event "Titled Tuesday Blitz May 10 Late 2022"]
[White "Garagulya, Konstantin"]
[Black "Ng, Gary"]
[WhiteFideId "4128931"]
[BlackFideId "2604914"]
[WhiteElo "2329"]
[BlackElo "2243"]
[Result "1-0"]
[Round "02"]
[TimeControl "180+1"]
[Date "2022.05.11"]
[WhiteClock "0:01:01"]
[BlackClock "0:00:02"]

1. d4 {[%clk 0:03:00]}  Nf6 {[%clk 0:02:59]} 2. Nf3 {[%clk 0:02:59]}  e6 {[%clk 0:02:58]} 3. Bg5 {[%clk 0:02:59]}  c5 {[%clk 0:02:57]} 4. Nbd2 {[%clk 0:02:59]}  cxd4 {[%clk 0:02:56]} 5. Nxd4 {[%clk 0:03:00]}  Nc6 {[%clk 0:02:55]} 6. Nxc6 {[%clk 0:03:00]}  bxc6 {[%clk 0:02:54]} 7. c4 {[%clk 0:03:01]}  d5 {[%clk 0:02:49]} 8. e3 {[%clk 0:03:01]}  Be7 {[%clk 0:02:49]} 9. Qc2 {[%clk 0:02:59]}  O-O {[%clk 0:02:48]} 10. Bd3 {[%clk 0:02:59]}  h6 {[%clk 0:02:47]} 11. Bh4 {[%clk 0:03:00]}  Ba6 {[%clk 0:02:42]} 12. O-O {[%clk 0:03:00]}  Rb8 {[%clk 0:02:39]} 13. Rab1 {[%clk 0:02:58]}  Qa5 {[%clk 0:02:35]} 14. a3 {[%clk 0:02:58]}  Rfc8 {[%clk 0:02:30]} 15. e4 {[%clk 0:02:57]}  Qd8 {[%clk 0:02:12]} 16. Bg3 {[%clk 0:02:50]}  Rb7 {[%clk 0:02:05]} 17. Rfd1 {[%clk 0:02:50]}  d4 {[%clk 0:01:57]} 18. b4 {[%clk 0:02:47]}  Rd7 {[%clk 0:01:44]} 19. Nb3 {[%clk 0:02:31]}  Ne8 {[%clk 0:01:34]} 20. c5 {[%clk 0:02:25]}  Bxd3 {[%clk 0:01:33]} 21. Rxd3 {[%clk 0:02:26]}  Bf6 {[%clk 0:01:21]} 22. e5 {[%clk 0:02:24]}  Be7 {[%clk 0:01:10]} 23. Rbd1 {[%clk 0:02:24]}  Nc7 {[%clk 0:01:11]} 24. Rxd4 {[%clk 0:02:23]}  Rd5 {[%clk 0:01:04]} 25. R4d3 {[%clk 0:02:09]}  Nb5 {[%clk 0:00:42]} 26. a4 {[%clk 0:02:08]}  Nc7 {[%clk 0:00:36]} 27. Na5 {[%clk 0:02:07]}  Qd7 {[%clk 0:00:35]} 28. Nc4 {[%clk 0:02:03]}  Rd8 {[%clk 0:00:32]} 29. Nd6 {[%clk 0:02:04]}  Na6 {[%clk 0:00:29]} 30. Qc4 {[%clk 0:01:55]}  Nc7 {[%clk 0:00:24]} 31. h3 {[%clk 0:01:53]}  Ne8 {[%clk 0:00:24]} 32. b5 {[%clk 0:01:51]}  Nc7 {[%clk 0:00:19]} 33. b6 {[%clk 0:01:48]}  axb6 {[%clk 0:00:16]} 34. cxb6 {[%clk 0:01:47]}  Ne8 {[%clk 0:00:16]} 35. a5 {[%clk 0:01:41]}  Nxd6 {[%clk 0:00:15]} 36. exd6 {[%clk 0:01:41]}  Bxd6 {[%clk 0:00:16]} 37. Rxd5 {[%clk 0:01:28]}  cxd5 {[%clk 0:00:16]} 38. Qb3 {[%clk 0:01:28]}  Bxg3 {[%clk 0:00:16]} 39. fxg3 {[%clk 0:01:28]}  Qd6 {[%clk 0:00:15]} 40. b7 {[%clk 0:01:24]}  Rb8 {[%clk 0:00:11]} 41. Rc1 {[%clk 0:01:18]}  Qa6 {[%clk 0:00:10]} 42. Rc7 {[%clk 0:01:13]}  Kf8 {[%clk 0:00:04]} 43. Kh2 {[%clk 0:01:09]}  Kg8 {[%clk 0:00:04]} 44. Qb4 {[%clk 0:01:06]}  Kh7 {[%clk 0:00:04]} 45. Rxf7 {[%clk 0:01:06]}  Kg6 {[%clk 0:00:04]} 46. Rc7 {[%clk 0:01:02]}  e5 {[%clk 0:00:02]} 47. Qg4+ {[%clk 0:01:00]}  Kf6 {[%clk 0:00:01]} 48. Qxg7+ {[%clk 0:01:01]}  Ke6 {[%clk 0:00:02]} 49. Qf7+ {[%clk 0:01:00]}  Kd6 {[%clk 0:00:02]} 50. Qe7# {[%clk 0:01:01]} 1-0


[Site "https://www.chess.com"]

[Event "Titled Tuesday Blitz May 10 Late 2022"]
[White "Godzwon, Iwo"]
[Black "Gatterer, Florian"]
[WhiteFideId "21802483"]
[BlackFideId "811688"]
[WhiteElo "2201"]
[BlackElo "2218"]
[Result "1-0"]
[Round "02"]
[TimeControl "180+1"]
[Date "2022.05.11"]
[WhiteClock "0:01:20"]
[BlackClock "0:00:06"]

1. e4 {[%clk 0:03:00]}  c6 {[%clk 0:02:58]} 2. d4 {[%clk 0:03:00]}  d5 {[%clk 0:02:59]} 3. e5 {[%clk 0:03:01]}  Bf5 {[%clk 0:02:59]} 4. Nd2 {[%clk 0:03:01]}  e6 {[%clk 0:02:57]} 5. Nb3 {[%clk 0:03:02]}  c5 {[%clk 0:02:54]} 6. dxc5 {[%clk 0:03:01]}  Bxc5 {[%clk 0:02:53]} 7. Nxc5 {[%clk 0:03:01]}  Qa5+ {[%clk 0:02:53]} 8. c3 {[%clk 0:03:02]}  Qxc5 {[%clk 0:02:53]} 9. Be3 {[%clk 0:03:02]}  Qc7 {[%clk 0:02:52]} 10. f4 {[%clk 0:03:03]}  Ne7 {[%clk 0:02:38]} 11. Nf3 {[%clk 0:03:03]}  O-O {[%clk 0:02:33]} 12. Be2 {[%clk 0:03:02]}  Nbc6 {[%clk 0:02:28]} 13. O-O {[%clk 0:02:57]}  Be4 {[%clk 0:01:52]} 14. Nd2 {[%clk 0:02:55]}  Nf5 {[%clk 0:01:31]} 15. Bc5 {[%clk 0:02:47]}  Rfd8 {[%clk 0:01:26]} 16. Bf2 {[%clk 0:02:42]}  f6 {[%clk 0:01:13]} 17. exf6 {[%clk 0:02:41]}  gxf6 {[%clk 0:01:13]} 18. Nxe4 {[%clk 0:02:37]}  dxe4 {[%clk 0:01:12]} 19. Qb3 {[%clk 0:02:38]}  Qf7 {[%clk 0:00:49]} 20. Bc4 {[%clk 0:02:23]}  Re8 {[%clk 0:00:48]} 21. Qc2 {[%clk 0:02:08]}  Na5 {[%clk 0:00:42]} 22. Be2 {[%clk 0:01:54]}  e3 {[%clk 0:00:41]} 23. Be1 {[%clk 0:01:53]}  Qc7 {[%clk 0:00:31]} 24. Qe4 {[%clk 0:01:41]}  Qc6 {[%clk 0:00:22]} 25. Qb4 {[%clk 0:01:28]}  Rac8 {[%clk 0:00:18]} 26. Qxa5 {[%clk 0:01:27]}  b6 {[%clk 0:00:15]} 27. Qb5 {[%clk 0:01:25]}  Qc7 {[%clk 0:00:14]} 28. a4 {[%clk 0:01:22]}  Qb7 {[%clk 0:00:10]} 29. a5 {[%clk 0:01:22]}  Nh4 {[%clk 0:00:10]} 30. Bxh4 {[%clk 0:01:21]}  a6 {[%clk 0:00:10]} 31. Qxb6 {[%clk 0:01:21]}  Qe4 {[%clk 0:00:10]} 32. Bf3 {[%clk 0:01:20]}  Qc2 {[%clk 0:00:10]} 33. Qxe3 {[%clk 0:01:19]}  Rcd8 {[%clk 0:00:09]} 34. Bxf6 {[%clk 0:01:19]}  Rd2 {[%clk 0:00:08]} 35. Rf2 {[%clk 0:01:19]}  Rxf2 {[%clk 0:00:06]} 36. Qxf2 {[%clk 0:01:19]}  Qd3 {[%clk 0:00:06]} 37. Bd4 {[%clk 0:01:20]} 1-0


[Site "https://www.chess.com"]

[Event "Titled Tuesday Blitz May 10 Late 2022"]
[White "Ibarra Jerez, Jose Carlos"]
[Black "Gurevich, Dmitry"]
[WhiteFideId "2226332"]
[BlackFideId "2000407"]
[WhiteElo "2626"]
[BlackElo "2506"]
[Result "1-0"]
[Round "02"]
[TimeControl "180+1"]
[Date "2022.05.10"]
[WhiteClock "0:00:36"]
[BlackClock "0:00:44"]

1. Nf3 {[%clk 0:02:59]}  Nf6 {[%clk 0:02:58]} 2. g3 {[%clk 0:02:55]}  d5 {[%clk 0:02:56]} 3. Bg2 {[%clk 0:02:54]}  c6 {[%clk 0:02:56]} 4. O-O {[%clk 0:02:54]}  Bf5 {[%clk 0:02:56]} 5. c4 {[%clk 0:02:52]}  h6 {[%clk 0:02:52]} 6. d3 {[%clk 0:02:47]}  e6 {[%clk 0:02:49]} 7. Be3 {[%clk 0:02:47]}  Nbd7 {[%clk 0:02:46]} 8. Qb3 {[%clk 0:02:46]}  Qc8 {[%clk 0:02:45]} 9. Nc3 {[%clk 0:02:45]}  Bc5 {[%clk 0:02:40]} 10. Bxc5 {[%clk 0:02:44]}  Nxc5 {[%clk 0:02:39]} 11. Qa3 {[%clk 0:02:44]}  Ncd7 {[%clk 0:02:27]} 12. cxd5 {[%clk 0:02:38]}  exd5 {[%clk 0:02:25]} 13. e4 {[%clk 0:02:37]}  dxe4 {[%clk 0:02:25]} 14. dxe4 {[%clk 0:02:30]}  Be6 {[%clk 0:02:19]} 15. e5 {[%clk 0:02:23]}  Nd5 {[%clk 0:02:14]} 16. Ne4 {[%clk 0:02:21]}  Kd8 {[%clk 0:02:06]} 17. Nd4 {[%clk 0:02:14]}  N7b6 {[%clk 0:01:56]} 18. Nd6 {[%clk 0:01:49]}  Qd7 {[%clk 0:01:55]} 19. f4 {[%clk 0:01:46]}  g6 {[%clk 0:01:54]} 20. Rac1 {[%clk 0:01:41]}  Kc7 {[%clk 0:01:32]} 21. b4 {[%clk 0:01:34]}  Kb8 {[%clk 0:01:27]} 22. Rc5 {[%clk 0:01:20]}  a6 {[%clk 0:01:24]} 23. Rfc1 {[%clk 0:01:18]}  Rc8 {[%clk 0:01:11]} 24. Qa5 {[%clk 0:01:08]}  Qc7 {[%clk 0:00:59]} 25. Qa3 {[%clk 0:00:54]}  Nd7 {[%clk 0:00:55]} 26. R5c2 {[%clk 0:00:46]}  Qb6 {[%clk 0:00:53]} 27. Rd2 {[%clk 0:00:41]}  Nxb4 {[%clk 0:00:46]} 28. Nxc8 {[%clk 0:00:40]}  Kxc8 {[%clk 0:00:46]} 29. Kh1 {[%clk 0:00:36]}  Kb8 {[%clk 0:00:44]} 30. Nxe6 {[%clk 0:00:36]} 1-0


[Site "https://www.chess.com"]

[Event "Titled Tuesday Blitz May 10 Late 2022"]
[White "Izzat, Kanan"]
[Black "Donchenko, Alexander"]
[WhiteFideId "13405209"]
[BlackFideId "24603295"]
[WhiteElo "2362"]
[BlackElo "2572"]
[Result "0-1"]
[Round "02"]
[TimeControl "180+1"]
[Date "2022.05.10"]
[WhiteClock "0:00:25"]
[BlackClock "0:00:56"]

1. e4 {[%clk 0:03:00]}  c6 {[%clk 0:03:00]} 2. d4 {[%clk 0:02:59]}  d5 {[%clk 0:03:01]} 3. e5 {[%clk 0:02:59]}  Bf5 {[%clk 0:03:01]} 4. Nd2 {[%clk 0:02:58]}  e6 {[%clk 0:03:02]} 5. Nb3 {[%clk 0:02:59]}  Nd7 {[%clk 0:03:02]} 6. Nf3 {[%clk 0:02:59]}  Ne7 {[%clk 0:03:02]} 7. Be2 {[%clk 0:02:58]}  h6 {[%clk 0:03:02]} 8. O-O {[%clk 0:02:58]}  g5 {[%clk 0:03:03]} 9. a4 {[%clk 0:02:59]}  Qc7 {[%clk 0:03:03]} 10. Bd2 {[%clk 0:02:58]}  Bg7 {[%clk 0:03:02]} 11. a5 {[%clk 0:02:37]}  c5 {[%clk 0:02:59]} 12. Nxc5 {[%clk 0:02:35]}  Nxc5 {[%clk 0:02:58]} 13. dxc5 {[%clk 0:02:35]}  Qxc5 {[%clk 0:02:55]} 14. Qe1 {[%clk 0:02:12]}  O-O {[%clk 0:02:49]} 15. Bb4 {[%clk 0:02:10]}  Qc7 {[%clk 0:02:49]} 16. Bd6 {[%clk 0:02:02]}  Qd7 {[%clk 0:02:49]} 17. Nd4 {[%clk 0:02:03]}  Bg6 {[%clk 0:02:48]} 18. Bb5 {[%clk 0:02:00]}  Qd8 {[%clk 0:02:41]} 19. Qb4 {[%clk 0:02:00]}  Nf5 {[%clk 0:02:32]} 20. Nxf5 {[%clk 0:01:59]}  Bxf5 {[%clk 0:02:33]} 21. c3 {[%clk 0:01:56]}  a6 {[%clk 0:02:21]} 22. Ba4 {[%clk 0:01:55]}  Qc8 {[%clk 0:02:14]} 23. Bxf8 {[%clk 0:01:52]}  Bxf8 {[%clk 0:02:15]} 24. Qd4 {[%clk 0:01:50]}  Qc7 {[%clk 0:02:12]} 25. b4 {[%clk 0:01:45]}  Rc8 {[%clk 0:02:10]} 26. Rac1 {[%clk 0:01:45]}  Bg7 {[%clk 0:02:08]} 27. Rfe1 {[%clk 0:01:46]}  Be4 {[%clk 0:02:08]} 28. f4 {[%clk 0:01:04]}  gxf4 {[%clk 0:02:05]} 29. Qf2 {[%clk 0:01:04]}  Bxe5 {[%clk 0:01:55]} 30. c4 {[%clk 0:01:03]}  Qe7 {[%clk 0:01:50]} 31. c5 {[%clk 0:00:42]}  Qf6 {[%clk 0:01:30]} 32. Kh1 {[%clk 0:00:43]}  Bc3 {[%clk 0:01:24]} 33. Rf1 {[%clk 0:00:39]}  Bxb4 {[%clk 0:01:23]} 34. c6 {[%clk 0:00:39]}  bxc6 {[%clk 0:01:23]} 35. Qb6 {[%clk 0:00:39]}  Bd3 {[%clk 0:01:14]} 36. Qxb4 {[%clk 0:00:36]}  Bxf1 {[%clk 0:01:12]} 37. Rxf1 {[%clk 0:00:37]}  e5 {[%clk 0:01:11]} 38. Qb7 {[%clk 0:00:38]}  Qe6 {[%clk 0:01:03]} 39. Bxc6 {[%clk 0:00:37]}  Qxc6 {[%clk 0:01:02]} 40. Qe7 {[%clk 0:00:36]}  Qe6 {[%clk 0:01:00]} 41. Qb7 {[%clk 0:00:34]}  d4 {[%clk 0:01:00]} 42. h3 {[%clk 0:00:34]}  Rc2 {[%clk 0:00:57]} 43. Qe4 {[%clk 0:00:31]}  Qc6 {[%clk 0:00:55]} 44. Qxc6 {[%clk 0:00:26]}  Rxc6 {[%clk 0:00:56]} 45. Rb1 {[%clk 0:00:25]}  Rc5 {[%clk 0:00:56]} 0-1


[Site "https://www.chess.com"]

[Event "Titled Tuesday Blitz May 10 Late 2022"]
[White "Jacobson, Aaron"]
[Black "Holt, Conrad"]
[WhiteFideId "2089912"]
[BlackFideId "2034387"]
[WhiteElo "2265"]
[BlackElo "2586"]
[Result "1/2-1/2"]
[Round "02"]
[TimeControl "180+1"]
[Date "2022.05.10"]
[WhiteClock "0:00:12"]
[BlackClock "0:00:09"]

1. d4 {[%clk 0:03:00]}  d5 {[%clk 0:02:59]} 2. Nf3 {[%clk 0:03:00]}  Nf6 {[%clk 0:02:59]} 3. c4 {[%clk 0:03:00]}  c6 {[%clk 0:03:00]} 4. cxd5 {[%clk 0:02:58]}  cxd5 {[%clk 0:03:00]} 5. Nc3 {[%clk 0:02:58]}  Nc6 {[%clk 0:03:01]} 6. Bf4 {[%clk 0:02:59]}  Nh5 {[%clk 0:03:01]} 7. Be5 {[%clk 0:02:54]}  e6 {[%clk 0:02:59]} 8. e3 {[%clk 0:02:52]}  Nxe5 {[%clk 0:02:51]} 9. Nxe5 {[%clk 0:02:50]}  Nf6 {[%clk 0:02:50]} 10. Bb5+ {[%clk 0:02:40]}  Bd7 {[%clk 0:02:45]} 11. Qa4 {[%clk 0:02:31]}  a6 {[%clk 0:02:41]} 12. Bxd7+ {[%clk 0:02:26]}  Nxd7 {[%clk 0:02:41]} 13. Qxd7+ {[%clk 0:02:21]}  Qxd7 {[%clk 0:02:41]} 14. Nxd7 {[%clk 0:02:22]}  Kxd7 {[%clk 0:02:41]} 15. Na4 {[%clk 0:02:11]}  Rb8 {[%clk 0:02:23]} 16. Rc1 {[%clk 0:02:06]}  b6 {[%clk 0:02:06]} 17. Ke2 {[%clk 0:02:00]}  Bd6 {[%clk 0:02:06]} 18. Rc2 {[%clk 0:01:57]}  Rhc8 {[%clk 0:02:06]} 19. Rhc1 {[%clk 0:01:52]}  Rxc2+ {[%clk 0:02:05]} 20. Rxc2 {[%clk 0:01:53]}  Bc7 {[%clk 0:02:03]} 21. h3 {[%clk 0:01:47]}  h5 {[%clk 0:01:59]} 22. f3 {[%clk 0:01:35]}  g5 {[%clk 0:01:56]} 23. e4 {[%clk 0:01:19]}  dxe4 {[%clk 0:01:31]} 24. fxe4 {[%clk 0:01:18]}  Rg8 {[%clk 0:01:20]} 25. Kd3 {[%clk 0:01:09]}  g4 {[%clk 0:01:15]} 26. Rf2 {[%clk 0:01:00]}  gxh3 {[%clk 0:01:13]} 27. gxh3 {[%clk 0:00:46]}  Rg3+ {[%clk 0:01:13]} 28. Ke2 {[%clk 0:00:44]}  Ke7 {[%clk 0:01:11]} 29. Rf3 {[%clk 0:00:44]}  Rg2+ {[%clk 0:01:07]} 30. Rf2 {[%clk 0:00:44]}  Rg5 {[%clk 0:01:00]} 31. Nc3 {[%clk 0:00:41]}  b5 {[%clk 0:01:00]} 32. e5 {[%clk 0:00:35]}  Bb6 {[%clk 0:00:57]} 33. Ne4 {[%clk 0:00:33]}  Rf5 {[%clk 0:00:13]} 34. Rxf5 {[%clk 0:00:32]}  exf5 {[%clk 0:00:14]} 35. Nd6 {[%clk 0:00:33]}  Ke6 {[%clk 0:00:15]} 36. Ke3 {[%clk 0:00:27]}  f6 {[%clk 0:00:10]} 37. Nc8 {[%clk 0:00:22]}  Bc7 {[%clk 0:00:10]} 38. exf6 {[%clk 0:00:18]}  Kxf6 {[%clk 0:00:11]} 39. Na7 {[%clk 0:00:12]}  Kg5 {[%clk 0:00:11]} 40. Kf3 {[%clk 0:00:12]}  Kh4 {[%clk 0:00:10]} 41. Kg2 {[%clk 0:00:12]}  Kg5 {[%clk 0:00:09]} 42. Kf3 {[%clk 0:00:12]}  Kh4 {[%clk 0:00:09]} 43. Kg2 {[%clk 0:00:12]}  Kg5 {[%clk 0:00:09]} 44. Kf3 {[%clk 0:00:12]} 1/2-1/2


[Site "https://www.chess.com"]

[Event "Titled Tuesday Blitz May 10 Late 2022"]
[White "Jakubowski, Krzysztof"]
[Black "Maghsoodloo, Parham"]
[WhiteFideId "1112848"]
[BlackFideId "12539929"]
[WhiteElo "2365"]
[BlackElo "2630"]
[Result "0-1"]
[Round "02"]
[TimeControl "180+1"]
[Date "2022.05.10"]
[WhiteClock "0:00:01"]
[BlackClock "0:00:11"]

1. e4 {[%clk 0:03:00]}  c5 {[%clk 0:02:59]} 2. Nc3 {[%clk 0:03:00]}  a6 {[%clk 0:02:57]} 3. g3 {[%clk 0:02:59]}  b5 {[%clk 0:02:57]} 4. Bg2 {[%clk 0:02:59]}  Bb7 {[%clk 0:02:58]} 5. d3 {[%clk 0:02:59]}  Nc6 {[%clk 0:02:57]} 6. f4 {[%clk 0:02:58]}  g6 {[%clk 0:02:55]} 7. Nf3 {[%clk 0:02:57]}  Bg7 {[%clk 0:02:56]} 8. O-O {[%clk 0:02:57]}  d6 {[%clk 0:02:55]} 9. Ne2 {[%clk 0:02:56]}  Nf6 {[%clk 0:02:55]} 10. h3 {[%clk 0:02:55]}  c4 {[%clk 0:02:50]} 11. Be3 {[%clk 0:02:53]}  O-O {[%clk 0:02:49]} 12. Qd2 {[%clk 0:02:51]}  Rc8 {[%clk 0:02:48]} 13. g4 {[%clk 0:02:48]}  Qa5 {[%clk 0:02:48]} 14. Qd1 {[%clk 0:02:40]}  cxd3 {[%clk 0:02:41]} 15. cxd3 {[%clk 0:02:41]}  Nd7 {[%clk 0:02:40]} 16. d4 {[%clk 0:02:33]}  Qa4 {[%clk 0:02:36]} 17. b3 {[%clk 0:02:32]}  Qa3 {[%clk 0:02:35]} 18. f5 {[%clk 0:02:11]}  Nb4 {[%clk 0:02:34]} 19. Bc1 {[%clk 0:02:06]}  Qa5 {[%clk 0:02:32]} 20. Bd2 {[%clk 0:02:07]}  Qa3 {[%clk 0:02:32]} 21. Bc1 {[%clk 0:02:04]}  Rxc1 {[%clk 0:02:13]} 22. Qxc1 {[%clk 0:02:03]}  Qxc1 {[%clk 0:02:14]} 23. Rfxc1 {[%clk 0:02:03]}  Bxe4 {[%clk 0:02:14]} 24. Rc7 {[%clk 0:01:54]}  Rd8 {[%clk 0:02:13]} 25. Rac1 {[%clk 0:01:52]}  Kf8 {[%clk 0:01:42]} 26. Rc8 {[%clk 0:01:49]}  Ke8 {[%clk 0:01:42]} 27. Ng5 {[%clk 0:01:46]}  Bxg2 {[%clk 0:01:24]} 28. Rxd8+ {[%clk 0:01:41]}  Kxd8 {[%clk 0:01:24]} 29. Kxg2 {[%clk 0:01:42]}  Nb6 {[%clk 0:01:15]} 30. Nxf7+ {[%clk 0:01:36]}  Ke8 {[%clk 0:01:11]} 31. Ng5 {[%clk 0:01:35]}  Bh6 {[%clk 0:01:08]} 32. h4 {[%clk 0:01:32]}  gxf5 {[%clk 0:01:08]} 33. gxf5 {[%clk 0:01:31]}  Kd7 {[%clk 0:01:08]} 34. Nf4 {[%clk 0:01:27]}  Nxa2 {[%clk 0:01:07]} 35. Re1 {[%clk 0:01:20]}  Nc3 {[%clk 0:01:05]} 36. Re6 {[%clk 0:01:18]}  Bxg5 {[%clk 0:00:53]} 37. hxg5 {[%clk 0:01:18]}  a5 {[%clk 0:00:53]} 38. Rh6 {[%clk 0:01:10]}  a4 {[%clk 0:00:47]} 39. bxa4 {[%clk 0:01:09]}  bxa4 {[%clk 0:00:48]} 40. Rxh7 {[%clk 0:01:09]}  a3 {[%clk 0:00:49]} 41. Rh1 {[%clk 0:01:10]}  a2 {[%clk 0:00:48]} 42. Ra1 {[%clk 0:01:10]}  Nc4 {[%clk 0:00:43]} 43. g6 {[%clk 0:01:06]}  Ke8 {[%clk 0:00:43]} 44. Ne6 {[%clk 0:00:25]}  Ne3+ {[%clk 0:00:18]} 45. Kf3 {[%clk 0:00:25]}  Nxf5 {[%clk 0:00:19]} 46. Kf4 {[%clk 0:00:07]}  Nh6 {[%clk 0:00:12]} 47. Kg5 {[%clk 0:00:06]}  Ng8 {[%clk 0:00:12]} 48. d5 {[%clk 0:00:02]}  Nf6 {[%clk 0:00:11]} 49. g7 {[%clk 0:00:01]}  Kf7 {[%clk 0:00:11]} 0-1


[Site "https://www.chess.com"]